bitfinex-derivatives/quotes_ETHF0:USTF0_20260125
["timestamp","ask_amount","ask_price","bid_price","bid_amount"]
[1769364719172,0.002862,2885.6,2883.7,0.92412373]
[1769364719369,0.002862,2885.6,2883.9,0.92412373]
[1769364720169,0.002862,2885.6,2884.0,0.92443592]
[1769364726271,0.002862,2885.6,2884.0,1.09804592]
[1769364726471,0.002862,2885.6,2884.3,1.09400586]
[1769364726876,0.002862,2885.6,2884.5,0.92006971]
[1769364727177,0.002862,2885.6,2884.5,1.09364971]
[1769364727375,0.002862,2885.6,2884.8,8.42568564]
[1769364727575,0.002862,2885.6,2884.9,8.42568564]
[1769364727776,0.002862,2885.6,2884.9,0.92006971]
[1769364727972,0.002862,2885.6,2884.9,8.42568564]
[1769364728281,0.002862,2885.6,2884.9,0.92006971]
[1769364729877,1.17663235,2886.8,2884.9,0.92006971]
[1769364730082,1.17663235,2886.8,2885.1,0.92186362]
[1769364730083,9.68040382,2886.7,2885.1,0.92186362]
[1769364730274,4.17540382,2886.6,2885.1,0.92186362]
[1769364730976,2.035,2886.5,2885.1,0.92186362]
[1769364731176,2.035,2886.4,2885.1,0.92186362]
[1769364732177,0.00375806,2886.5,2885.1,0.92186362]
[1769364732479,2.03875806,2886.5,2885.1,0.92186362]
[1769364734575,0.00375806,2886.5,2885.1,0.92186362]
[1769364734782,0.00375806,2886.5,2885.4,0.91872587]
[1769364735171,0.00375806,2886.5,2885.6,0.91840291]
[1769364735378,0.00375806,2886.5,2885.6,0.92178195]
[1769364736883,0.00375806,2886.5,2885.6,8.42739788]
[1769364737079,0.00375806,2886.5,2885.7,0.91711274]
[1769364738181,0.00375806,2886.5,2885.7,8.42272867]
[1769364738381,0.00375806,2886.5,2885.8,0.91477344]
[1769364744389,4.19657236,2886.4,2885.8,0.91477344]
[1769364744585,0.00375806,2886.5,2885.8,0.91477344]
[1769364744890,2.035,2887.0,2886.3,0.91094831]
[1769364745191,4.19729595,2886.9,2886.3,0.91094831]
[1769364745378,4.19729595,2886.8,2886.3,0.91094831]
[1769364745578,4.19729595,2886.7,2886.3,0.91094831]
[1769364745779,4.19729595,2886.6,2886.3,0.91094831]
[1769364745983,0.00255151,2886.7,2886.3,8.41656424]
[1769364746185,4.19677331,2886.6,2886.3,8.41656424]
[1769364746381,0.00255151,2886.7,2886.3,8.41656424]
[1769364746582,4.19634468,2886.6,2886.3,8.41656424]
[1769364746786,0.00255151,2886.7,2885.7,0.91303065]
[1769364747093,0.00255151,2886.7,2885.9,0.91275954]
[1769364748187,4.19554797,2886.6,2885.9,0.91275954]
[1769364748495,1.17568256,2886.0,2884.0,0.91339468]
[1769364748696,5.503,2885.9,2884.0,0.91339468]
[1769364748889,0.17354,2885.3,2884.0,0.91339468]
[1769364749088,4.19442072,2885.2,2884.0,0.91339468]
[1769364749289,6.22842072,2885.1,2884.0,0.91339468]
[1769364749492,4.19442072,2885.0,2884.0,0.91647298]
[1769364749691,2.034,2885.1,2884.0,0.91647298]
[1769364749889,4.19012444,2885.0,2884.0,0.91647298]
[1769364750091,2.034,2884.9,2884.0,0.91647298]
[1769364752201,1.34918256,2886.0,2884.0,0.91647298]
[1769364752395,9.6902397,2885.9,2884.1,0.90824463]
[1769364752595,4.1862397,2885.8,2884.1,0.90824463]
[1769364752792,4.1862397,2885.7,2884.1,0.90824463]
[1769364753000,4.1862397,2885.6,2884.1,0.90824463]
[1769364753302,4.1862397,2885.5,2884.1,0.90824463]
[1769364753500,4.1862397,2885.4,2884.1,0.90824463]
[1769364753696,4.1862397,2885.3,2884.0,0.9108831]
[1769364753896,9.6912397,2885.2,2884.0,0.9108831]
[1769364754096,4.1862397,2885.1,2884.0,0.9108831]
[1769364754296,4.1862397,2885.0,2884.0,0.9108831]
[1769364754492,4.1862397,2884.9,2884.0,0.9108831]
[1769364754700,5.505,2885.2,2884.0,0.9108831]
[1769364754895,4.18374853,2885.1,2884.0,0.9108831]
[1769364755092,4.18374853,2885.0,2884.0,0.9108831]
[1769364755303,4.18374853,2884.9,2884.0,0.9108831]
[1769364755503,5.505,2885.2,2884.0,0.9108831]
[1769364755703,4.18252107,2885.1,2884.0,0.9108831]
[1769364755902,4.18252107,2885.0,2884.0,0.9108831]
[1769364756203,4.18252107,2884.9,2884.0,0.9108831]
[1769364756496,5.505,2885.2,2884.0,0.9108831]
[1769364756701,4.18128143,2885.1,2884.0,0.9108831]
[1769364756901,4.18128143,2885.0,2884.0,0.9108831]
[1769364757097,5.505,2885.2,2884.0,0.9108831]
[1769364757302,4.17967572,2885.1,2884.0,0.9108831]
[1769364757504,4.17967572,2885.0,2884.0,0.9108831]
[1769364757702,5.505,2885.2,2884.0,0.9108831]
[1769364757906,4.17939936,2885.1,2884.0,0.9108831]
[1769364758107,4.17939936,2885.0,2884.0,0.9108831]
[1769364758299,5.505,2885.2,2884.0,0.9108831]
[1769364758605,4.17811838,2885.1,2884.0,0.9108831]
[1769364758801,4.17811838,2885.0,2884.0,0.9108831]
[1769364758995,2.035,2884.9,2884.0,0.9108831]
[1769364759500,4.17649856,2884.8,2883.2,0.17366]
[1769364759705,2.035,2884.9,2883.3,7.50561593]
[1769364759904,4.17637852,2884.8,2882.7,2.034]
[1769364760101,1.17568256,2884.4,2882.5,0.1737]
[1769364760301,2.035,2884.3,2882.5,0.1737]
[1769364760507,2.03901438,2884.3,2882.6,7.50561593]
[1769364760700,2.03901438,2884.3,2882.7,7.50561593]
[1769364761110,2.03901438,2884.3,2882.8,7.50561593]
[1769364761310,2.03901438,2884.3,2882.7,7.50561593]
[1769364761503,2.03901438,2884.3,2882.9,0.67746641]
[1769364761703,0.17361,2884.2,2882.9,0.67746641]
[1769364762010,1.17568256,2883.9,2882.5,0.68013744]
[1769364762201,7.6398144,2883.8,2882.5,0.68013744]
[1769364762404,2.035,2883.7,2882.5,0.00267103]
[1769364762697,0.17364,2883.6,2882.1,0.67746641]
[1769364762905,4.16530065,2883.5,2882.1,0.67746641]
[1769364763109,0.17364,2883.6,2882.1,0.67746641]
[1769364763407,9.66695875,2883.5,2882.1,0.67746641]
[1769364763608,5.506,2883.5,2882.1,0.67746641]
[1769364763804,5.506,2883.5,2882.1,0.68065327]
[1769364765803,0.17364,2883.6,2882.1,0.68065327]
[1769364766007,2.036,2883.5,2882.5,0.67746641]
[1769364767306,3.471,2884.0,2882.8,0.67746641]
[1769364767512,2.036,2883.9,2882.8,0.67746641]
[1769364767905,2.036,2883.9,2882.2,0.67746641]
[1769364768105,2.036,2883.9,2882.3,0.67746641]
[1769364770205,1.17568256,2883.7,2882.3,0.67746641]
[1769364770603,5.508,2883.6,2882.3,0.67746641]
[1769364771209,5.508,2883.6,2882.1,0.00318686]
[1769364771602,4.16117586,2883.5,2882.1,0.00318686]
[1769364771806,1.17568256,2883.2,2881.4,4.14746641]
[1769364772009,1.17568256,2883.2,2881.5,0.67746641]
[1769364772308,5.508,2883.1,2881.6,0.67746641]
[1769364772706,5.508,2883.1,2881.6,0.68002264]
[1769364772913,4.16027521,2883.0,2881.6,0.00255623]
[1769364773214,5.93743697,2883.1,2881.6,0.00255623]
[1769364773515,4.1601967,2883.0,2881.6,0.00255623]
[1769364773714,5.93743697,2883.1,2881.6,0.00255623]
[1769364773913,0.17368,2882.9,2881.6,0.00255623]
[1769364774115,4.15987038,2882.8,2881.6,0.00255623]
[1769364774304,5.50925294,2882.7,2881.0,0.67746641]
[1769364774510,4.15987038,2882.6,2881.0,0.67746641]
[1769364774810,6.19587038,2882.5,2880.2,3.472]
[1769364775011,1.17568256,2881.6,2879.9,0.67746641]
[1769364775211,0.24020087,2880.5,2878.6,0.67746641]
[1769364775520,0.24020087,2880.5,2877.8,0.0088039]
[1769364775521,1.17568256,2880.1,2877.8,0.0088039]
[1769364775710,6.18819156,2880.0,2877.9,7.51801751]
[1769364776013,5.508,2880.0,2877.9,0.00984535]
[1769364776213,5.508,2879.9,2877.9,0.00984535]
[1769364776413,0.62129795,2879.8,2877.9,0.01275199]
[1769364776612,0.00317691,2880.5,2878.2,7.50817216]
[1769364776613,0.62129795,2880.3,2878.2,7.50817216]
[1769364776811,3.473,2880.1,2878.2,7.50817216]
[1769364777014,3.473,2880.1,2877.9,0.01275199]
[1769364777215,0.62129795,2880.3,2877.9,0.01275199]
[1769364777416,5.51,2880.0,2878.3,7.50817216]
[1769364777610,5.51,2880.0,2878.5,7.50817216]
[1769364777807,1.17568256,2880.1,2878.2,0.67746641]
[1769364778007,2.037,2879.9,2878.2,0.67746641]
[1769364778214,0.62129795,2879.8,2878.2,7.50817216]
[1769364778406,6.13129795,2879.8,2878.2,7.50817216]
[1769364778613,6.13129795,2879.8,2878.0,0.67746641]
[1769364778806,0.62129795,2879.7,2877.9,0.01275199]
[1769364779010,0.62129795,2879.5,2877.9,0.01275199]
[1769364779211,0.62129795,2879.0,2875.0,11.77152705]
[1769364779407,1.17568256,2876.8,2872.8,8.93209407]
[1769364779614,1.17568256,2875.6,2874.1,0.67746641]
[1769364779817,4.08380089,2877.6,2874.3,0.67746641]
[1769364780011,3.64803,2877.3,2874.3,0.67746641]
[1769364780212,0.17404,2877.0,2874.3,0.68168617]
[1769364780411,9.63718918,2877.2,2874.3,0.68168617]
[1769364780412,4.12618918,2876.9,2874.3,0.68168617]
[1769364780721,4.12775459,2876.8,2874.5,0.67746641]
[1769364780914,1.17568256,2876.1,2874.5,0.67746641]
[1769364781311,1.17568256,2875.1,2874.3,0.00421976]
[1769364781514,1.17944542,2875.1,2872.1,0.17434]
[1769364781721,0.00376286,2875.1,2872.7,2.038]
[1769364781914,0.00376286,2875.1,2872.5,0.17431]
[1769364782114,0.62129795,2874.8,2870.4,1.36036341]
[1769364782320,0.62129795,2872.2,2870.0,0.59230301]
[1769364782611,1.18593341,2872.0,2867.6,3.65061]
[1769364782813,1.18593341,2871.3,2866.5,1.18593341]
[1769364783019,3.476,2868.8,2864.8,2.65]
[1769364783217,3.476,2868.8,2861.8,0.17496]
[1769364783218,1.18593341,2865.3,2861.8,0.17496]
[1769364783422,1.18593341,2867.2,2861.4,1.18593341]
[1769364783616,1.18593341,2867.2,2861.4,0.00343876]
[1769364783617,5.515,2865.2,2861.4,0.00343876]
[1769364783820,1.54243139,2864.7,2861.5,0.86989535]
[1769364784009,1.54243139,2863.5,2860.7,0.53574066]
[1769364784212,1.54243139,2862.4,2858.7,2.039]
[1769364784423,1.54243139,2862.4,2854.7,1.54243139]
[1769364784424,0.48841438,2860.0,2855.2,0.17536]
[1769364784722,0.48841438,2860.0,2853.3,2.82548]
[1769364784723,0.48841438,2858.8,2853.3,2.65]
[1769364784908,0.48841438,2857.6,2855.0,0.0142319]
[1769364785111,0.48841438,2857.6,2852.4,3.478]
[1769364785112,0.48841438,2853.9,2849.0,0.17575]
[1769364785314,0.1,2854.0,2846.6,11.942008]
[1769364785315,0.20387,2848.0,2847.5,2.04]
[1769364785520,3.48,2851.3,2843.0,1.54243139]
[1769364785818,5.523,2851.2,2847.6,0.17584]
[1769364786022,3.63769969,2847.9,2847.6,0.00264946]
[1769364786319,29.8985536,2851.2,2844.3,3.481]
[1769364786320,1.54243139,2847.7,2844.7,5.805]
[1769364786523,1.25650207,2847.8,2845.5,0.61125937]
[1769364786724,3.803,2848.5,2844.8,5.9505373]
[1769364786926,0.48841438,2848.8,2844.9,13.17521088]
[1769364787126,0.48841438,2848.8,2843.4,0.31367427]
[1769364787127,1.81677098,2847.7,2843.4,0.31367427]
[1769364787327,2.08771301,2848.4,2842.9,25.4240575]
[1769364787523,1.54243139,2852.8,2844.0,1.54243139]
[1769364787818,2.70377098,2852.0,2844.0,1.54243139]
[1769364788018,0.17554,2852.4,2851.8,0.8061393]
[1769364788217,0.17556,2852.1,2847.9,1.985]
[1769364788421,0.00415579,2852.1,2847.9,0.00252262]
[1769364788721,0.17545,2853.9,2850.7,0.48856125]
[1769364788921,0.48841438,2856.6,2850.7,0.48856125]
[1769364789112,0.1754,2854.6,2850.7,2.78946838]
[1769364789416,0.48841438,2855.0,2849.6,3.7979957]
[1769364789624,0.48841438,2855.0,2849.6,3.6040757]
[1769364789815,0.0025868,2855.0,2849.7,4.03806318]
[1769364790011,3.84087312,2854.9,2849.6,0.00276387]
[1769364790217,0.0025868,2855.0,2852.7,18.05584662]
[1769364790415,0.0025868,2855.0,2852.7,0.00417944]
[1769364790720,0.0025868,2855.0,2849.8,3.98191801]
[1769364790721,0.17518,2858.2,2847.2,7.01849172]
[1769364791018,1.2854977,2858.3,2853.2,0.48856125]
[1769364791224,0.17505,2860.4,2853.9,0.48856125]
[1769364791420,0.17506,2860.2,2854.7,0.48856125]
[1769364791619,0.17494,2862.2,2854.7,0.48856125]
[1769364791620,2.76018522,2860.7,2856.8,0.48856125]
[1769364791821,0.00324626,2860.7,2859.1,10.62074827]
[1769364792025,1.54897148,2860.7,2859.6,10.62074827]
[1769364792214,0.06089132,2861.1,2860.3,0.48856125]
[1769364792416,0.48841438,2863.9,2861.0,10.62074827]
[1769364792719,0.17483,2864.0,2860.3,0.48856125]
[1769364792720,1.71731139,2863.2,2860.3,0.48856125]
[1769364792925,0.17489,2863.0,2860.3,0.48856125]
[1769364793126,0.1749,2862.9,2860.3,0.4928614]
[1769364793315,0.00389249,2863.0,2860.3,0.4928614]
[1769364793514,0.00389249,2863.0,2858.5,0.48856125]
[1769364793515,2.03084577,2861.8,2858.5,0.48856125]
[1769364793717,0.48841438,2862.7,2858.8,0.48856125]
[1769364793916,1.54243139,2861.7,2858.8,0.48856125]
[1769364794125,2.03084577,2861.7,2858.8,0.48856125]
[1769364794314,1.54243139,2861.7,2858.9,0.48856125]
[1769364794519,1.54243139,2861.7,2858.9,0.49150801]
[1769364795332,1.08162666,2861.6,2858.9,0.00294676]
[1769364795626,1.08162666,2861.3,2858.9,0.00294676]
[1769364796018,1.08162666,2862.2,2858.9,1.04715414]
[1769364796218,1.54243139,2862.8,2859.4,1.04420738]
[1769364796421,1.54243139,2863.9,2860.6,1.04420738]
[1769364796735,1.54243139,2863.9,2860.5,10.62074827]
[1769364796736,1.08162666,2864.8,2861.2,1.04420738]
[1769364796917,1.54243139,2865.0,2862.2,1.04420738]
[1769364797318,1.54243139,2865.0,2862.5,10.62074827]
[1769364797629,1.54243139,2866.1,2862.9,1.04420738]
[1769364797928,1.54243139,2866.1,2862.6,3.497]
[1769364797929,1.08162666,2866.0,2862.6,3.497]
[1769364798123,0.00376904,2866.1,2862.6,3.497]
[1769364798322,0.00376904,2866.1,2862.7,3.9547204]
[1769364798528,1.08162666,2865.9,2861.2,0.00345845]
[1769364798934,1.08162666,2865.9,2861.5,3.90502892]
[1769364799136,1.14241762,2865.9,2861.4,0.33452945]
[1769364799435,1.08162666,2865.5,2861.2,0.00345845]
[1769364799636,1.08162666,2863.7,2861.2,0.00345845]
[1769364799829,1.08162666,2863.7,2858.9,3.496]
[1769364799830,1.08162666,2863.5,2858.9,3.496]
[1769364800035,1.08162666,2863.5,2859.8,0.3719849]
[1769364800736,1.08162666,2863.1,2859.8,0.00265709]
[1769364802134,1.27359424,2861.5,2858.2,2.77570403]
[1769364802326,1.27359424,2859.8,2858.2,2.77570403]
[1769364802532,0.17515,2858.8,2856.0,3.497]
[1769364802730,1.27359424,2858.5,2856.0,3.497]
[1769364803031,1.27359424,2858.5,2856.0,3.55791824]
[1769364803336,1.28038037,2856.4,2852.2,0.10255125]
[1769364803536,0.17534,2855.8,2850.8,3.497]
[1769364803836,1.49096907,2853.6,2849.4,0.10255125]
[1769364804031,1.31549907,2853.6,2849.7,0.09361437]
[1769364804341,1.31808478,2853.6,2850.0,0.09361437]
[1769364804632,1.31549907,2854.5,2852.0,7.75182391]
[1769364804930,1.32196509,2855.2,2852.1,3.498]
[1769364805138,4.00629697,2855.7,2852.2,0.1422706]
[1769364805434,1.32196509,2858.1,2854.3,0.1422706]
[1769364805734,0.00286201,2858.1,2854.5,0.1422706]
[1769364805935,0.00286201,2858.1,2855.4,0.18049454]
[1769364806131,1.3333157,2859.9,2857.6,7.75182391]
[1769364806432,1.3333157,2860.8,2857.6,0.33153711]
[1769364806642,1.3333157,2860.8,2858.4,7.75182391]
[1769364806934,1.33195849,2861.7,2858.1,2.81951455]
[1769364807236,0.00362519,2861.7,2858.2,0.16452292]
[1769364807426,0.00362519,2861.7,2859.6,7.75182391]
[1769364807631,0.00362519,2861.7,2858.9,3.5]
[1769364807830,0.00362519,2861.7,2859.5,7.75182391]
[1769364808032,0.00362519,2861.7,2859.8,7.75182391]
[1769364808228,1.31334346,2861.4,2858.9,3.5]
[1769364808428,1.31334346,2860.9,2858.1,0.00271632]
[1769364808728,1.31334346,2860.7,2858.5,7.75182391]
[1769364808932,1.31334346,2860.7,2858.1,0.00271632]
[1769364809233,1.31210813,2860.5,2858.1,0.00271632]
[1769364809432,1.31210813,2860.5,2858.2,7.75182391]
[1769364809630,1.31210813,2860.5,2858.1,0.00271632]
[1769364809631,1.31210813,2860.5,2858.6,7.75182391]
[1769364809833,1.31210813,2860.5,2858.1,0.00271632]
[1769364810035,1.31210813,2860.5,2858.5,7.75182391]
[1769364810325,1.31210813,2860.5,2858.1,0.00271632]
[1769364810326,1.32329284,2860.3,2858.1,0.00271632]
[1769364810539,1.32329284,2859.5,2858.1,0.00271632]
[1769364810733,1.32645001,2859.5,2856.4,0.32868595]
[1769364810934,1.32645001,2859.5,2855.9,3.5]
[1769364811131,1.32645001,2859.5,2856.0,0.25586428]
[1769364811441,1.54243139,2861.6,2856.0,0.25586428]
[1769364811442,1.32795574,2860.3,2857.0,0.25270711]
[1769364811641,1.32795574,2860.3,2857.3,7.75182391]
[1769364811831,1.32795574,2860.3,2858.4,7.75182391]
[1769364812036,1.32653027,2861.5,2858.4,3.15]
[1769364812232,3.75850378,2865.4,2858.4,3.15]
[1769364812233,1.32653027,2862.3,2858.5,3.9632834]
[1769364812433,1.32653027,2862.3,2859.3,0.31475321]
[1769364812434,0.00294045,2862.3,2859.3,0.31475321]
[1769364812640,0.00294045,2862.3,2861.0,7.75182391]
[1769364812839,0.00294045,2862.3,2861.0,7.75566944]
[1769364813143,1.54243139,2863.9,2861.0,7.75566944]
[1769364813144,1.39829313,2863.9,2862.2,7.75182391]
[1769364813343,1.39829313,2863.9,2862.0,7.75182391]
[1769364813644,1.39829313,2863.9,2861.0,0.00384553]
[1769364814136,1.40203046,2863.9,2861.0,0.00384553]
[1769364814537,1.40203046,2863.9,2862.3,7.75182391]
[1769364814735,1.40203046,2863.9,2861.0,0.00384553]
[1769364815234,1.39829313,2867.1,2861.1,4.00442089]
[1769364815437,1.39829313,2866.0,2862.2,0.17494]
[1769364815832,1.39829313,2866.0,2862.4,0.53074439]
[1769364816138,1.39829313,2867.0,2864.2,7.75182391]
[1769364816345,1.40262393,2867.0,2864.2,0.00335772]
[1769364816649,1.40262393,2867.0,2865.3,7.75182391]
[1769364816935,1.40262393,2867.0,2864.3,3.149]
[1769364817140,1.39829313,2869.5,2864.5,0.57483837]
[1769364817339,1.25933534,2870.9,2864.4,3.7329154]
[1769364817340,1.39829313,2867.9,2864.4,3.7329154]
[1769364817542,1.39829313,2867.8,2864.2,0.00335772]
[1769364817744,1.39829313,2867.8,2864.8,7.75182391]
[1769364817932,1.39829313,2867.8,2864.2,0.00335772]
[1769364818133,1.40258716,2867.8,2864.2,0.00335772]
[1769364818439,1.39829313,2866.8,2864.2,0.00335772]
[1769364819245,1.39829313,2866.8,2861.9,27.641]
[1769364819432,1.39829313,2866.8,2861.9,35.39282391]
[1769364819745,1.39829313,2866.6,2861.9,27.641]
[1769364820043,1.39829313,2866.6,2862.2,7.75182391]
[1769364820245,1.39829313,2866.6,2862.2,0.00444526]
[1769364820437,3.148,2866.7,2862.2,0.00444526]
[1769364820438,1.39829313,2866.4,2862.2,0.00444526]
[1769364820633,1.39829313,2864.6,2862.2,0.00444526]
[1769364820839,1.40081383,2864.6,2862.2,0.00444526]
[1769364821038,1.40081383,2864.6,2862.2,0.17938526]
[1769364821039,0.0025207,2864.6,2862.2,0.17938526]
[1769364821235,0.0025207,2864.6,2862.2,0.00444526]
[1769364821935,0.0025207,2864.6,2863.1,7.75182391]
[1769364822141,1.40081383,2864.6,2862.5,7.75182391]
[1769364822447,1.40081383,2864.6,2862.6,7.75182391]
[1769364822644,1.40081383,2864.6,2862.2,0.00444526]
[1769364824239,1.40081383,2864.6,2863.0,7.75182391]
[1769364824542,1.40081383,2864.6,2863.2,7.75182391]
[1769364824739,0.0025207,2864.6,2862.8,0.1749]
[1769364825045,0.0025207,2864.6,2863.5,7.75182391]
[1769364825245,1.39829313,2866.2,2864.2,0.17481]
[1769364825443,1.39829313,2866.2,2864.0,0.17483]
[1769364825643,1.39829313,2866.2,2863.4,3.147]
[1769364825644,1.39829313,2866.2,2863.5,7.75182391]
[1769364825842,1.39829313,2866.2,2863.7,7.75182391]
[1769364826047,1.39829313,2866.2,2863.9,0.17483]
[1769364826247,1.40145739,2866.2,2864.7,0.17479]
[1769364826440,0.00316426,2866.2,2864.7,0.17819046]
[1769364826644,4.68943139,2868.5,2865.8,7.75182391]
[1769364826848,24.478,2869.6,2865.6,0.17473]
[1769364826849,1.39829313,2868.4,2865.6,0.17473]
[1769364827146,1.39829313,2868.4,2866.1,0.1747]
[1769364827350,1.19829313,2868.4,2866.1,0.1747]
[1769364827545,1.20124407,2868.4,2865.1,3.147]
[1769364827745,1.20124407,2868.4,2866.3,0.17469]
[1769364827935,0.00295094,2868.4,2865.4,1.47645077]
[1769364828144,0.00295094,2868.4,2866.9,7.92647391]
[1769364828343,0.00295094,2868.4,2866.9,0.17878803]
[1769364828649,0.06069247,2870.1,2866.9,1.47427056]
[1769364828849,0.32683073,2870.7,2867.5,7.75182391]
[1769364829148,3.146,2870.8,2867.9,0.17459]
[1769364829348,1.32001469,2870.9,2868.4,0.17456]
[1769364829349,1.39829313,2870.7,2868.4,0.17456]
[1769364829544,1.39829313,2870.7,2868.1,0.32930571]
[1769364829845,1.40158149,2870.7,2868.2,0.17457]
[1769364830043,1.40158149,2870.7,2868.4,0.17456]
[1769364830550,1.40158149,2870.7,2867.7,1.52974846]
[1769364830851,1.40158149,2870.7,2868.6,7.75182391]
[1769364831053,1.40158149,2870.7,2868.8,0.17453]
[1769364831248,1.54571975,2870.7,2867.1,0.17464]
[1769364831449,1.39829313,2870.5,2867.7,0.1746]
[1769364831659,1.39829313,2870.5,2866.8,3.32065]
[1769364831944,1.39829313,2870.5,2867.1,0.17464]
[1769364832150,1.39829313,2870.3,2867.2,0.17463]
[1769364832538,0.00328836,2870.7,2867.5,1.52974846]
[1769364832739,0.00328836,2870.7,2868.9,0.17453]
[1769364832946,0.00328836,2870.7,2867.5,1.52974846]
[1769364832947,1.39829313,2872.0,2869.9,0.17447]
[1769364833357,1.39829313,2872.0,2869.7,3.144]
[1769364833544,1.39829313,2872.0,2869.8,7.75182391]
[1769364833753,1.39829313,2872.0,2868.8,0.17454]
[1769364833948,1.40274846,2872.0,2868.8,0.00382881]
[1769364834344,1.82704805,2871.1,2868.8,0.00382881]
[1769364834549,1.82704805,2871.0,2868.8,0.00382881]
[1769364835244,1.82704805,2871.0,2867.4,0.17462]
[1769364835440,1.82704805,2871.0,2866.8,3.143]
[1769364835647,1.82704805,2871.0,2867.9,0.17459]
[1769364835957,1.82704805,2871.0,2868.1,0.17458]
[1769364836351,1.82704805,2871.0,2869.2,0.17451]
[1769364836550,1.833236,2871.9,2869.2,3.143]
[1769364836750,1.833236,2871.9,2869.7,7.75182391]
[1769364836951,1.833236,2871.9,2869.2,3.143]
[1769364837151,1.833236,2871.9,2869.5,7.75182391]
[1769364837352,1.833236,2871.9,2869.5,7.92631391]
[1769364837651,1.833236,2871.9,2869.2,3.143]
[1769364837951,1.833236,2871.9,2869.2,3.31751]
[1769364838156,1.833236,2871.9,2869.2,11.06933391]
[1769364838652,1.833236,2871.9,2869.2,3.143]
[1769364839045,1.833236,2871.9,2869.2,10.89482391]
[1769364839442,1.833236,2871.9,2869.2,3.143]
[1769364839652,1.833236,2871.9,2869.7,7.92630391]
[1769364839856,1.7172875,2872.7,2870.9,0.1744]
[1769364840155,1.7172875,2872.7,2870.6,0.17442]
[1769364840356,1.7172875,2872.7,2869.5,2.315]
[1769364840657,1.7172875,2872.7,2869.2,3.143]
[1769364840855,1.72102281,2872.7,2869.3,0.1745]
[1769364841048,1.72102281,2872.7,2869.4,0.1745]
[1769364841256,1.72102281,2872.7,2869.2,3.1468401]
[1769364841257,1.71637642,2871.7,2869.2,0.0038401]
[1769364841852,1.70571287,2872.6,2869.2,0.67133089]
[1769364842054,1.70571287,2872.6,2870.2,7.75182391]
[1769364842253,0.00373531,2872.7,2871.7,0.17436]
[1769364842454,1.70571287,2873.4,2872.6,7.7480886]
[1769364842660,1.70571287,2873.4,2872.2,0.17433]
[1769364842661,1.58468664,2874.4,2872.8,6.04237573]
[1769364842857,1.58468664,2873.7,2871.7,0.00270597]
[1769364843063,1.58468664,2873.7,2867.9,0.17459]
[1769364843064,1.58468664,2872.3,2870.3,0.17444]
[1769364843263,3.472,2874.0,2869.6,1.96397696]
[1769364843264,1.58468664,2873.0,2869.6,1.96397696]
[1769364843460,1.58468664,2873.0,2871.0,0.1744]
[1769364843659,1.58468664,2873.0,2869.9,1.96397696]
[1769364843859,6.612,2873.6,2869.2,3.141]
[1769364843860,1.58468664,2872.3,2870.1,0.17445]
[1769364844163,0.06060147,2874.2,2870.1,1.96779171]
[1769364844363,1.58468664,2874.0,2871.1,0.17439]
[1769364844554,1.58468664,2873.2,2871.1,0.17439]
[1769364844756,1.87230957,2873.2,2871.3,0.17438]
[1769364845060,1.87230957,2873.2,2871.4,0.17438]
[1769364845266,1.87621674,2873.2,2871.9,6.04237573]
[1769364845467,1.87621674,2873.2,2872.0,6.04237573]
[1769364845665,3.45699621,2872.6,2870.7,0.17442]
[1769364845865,3.45699621,2872.6,2870.1,0.00381475]
[1769364845866,1.87230957,2872.5,2870.1,0.00381475]
[1769364846056,1.87230957,2871.3,2870.1,0.00381475]
[1769364846962,1.87230957,2871.3,2869.2,3.141]
[1769364847259,3.45699621,2870.9,2869.0,0.17452]
[1769364847462,1.87230957,2870.1,2868.1,0.17458]
[1769364847761,1.87230957,2870.1,2867.8,3.139]
[1769364847956,1.87508371,2870.1,2868.3,6.04237573]
[1769364848159,1.87508371,2870.1,2867.8,3.14200573]
[1769364848362,0.00277414,2870.1,2868.8,0.17453]
[1769364848559,0.00277414,2870.1,2868.8,6.21690573]
[1769364848766,0.00277414,2870.1,2869.0,0.17452]
[1769364848964,0.00277414,2870.1,2867.9,1.96397696]
[1769364849163,0.00277414,2870.1,2868.6,0.17455]
[1769364849370,0.00277414,2870.1,2869.2,6.04237573]
[1769364849573,0.00277414,2870.1,2869.3,6.04237573]
[1769364849764,0.00277414,2870.1,2870.0,2.70516585]
[1769364850258,0.00277414,2870.1,2868.0,2.13855696]
[1769364850466,0.00277414,2870.1,2863.5,17.0600114]
[1769364850467,1.58468664,2869.5,2866.6,1.96397696]
[1769364850757,0.00277414,2870.1,2866.9,1.96397696]
[1769364850958,0.00277414,2870.1,2868.1,1.96397696]
[1769364851368,0.00277414,2870.1,2868.3,1.96397696]
[1769364851671,1.58468664,2872.3,2869.3,1.96397696]
[1769364852264,1.58468664,2872.3,2869.8,1.96397696]
[1769364852470,3.139,2872.4,2869.8,1.96397696]
[1769364852670,0.00302724,2872.4,2870.5,1.96397696]
[1769364852964,0.00302724,2872.4,2869.8,0.00350517]
[1769364852965,0.00302724,2872.4,2871.1,1.96397696]
[1769364853171,0.00302724,2872.4,2871.1,2.13836696]
[1769364853372,0.00302724,2872.4,2871.1,1.96397696]
[1769364853674,3.139,2873.6,2870.6,2.13839696]
[1769364853875,3.139,2873.6,2870.7,2.13839696]
[1769364854265,1.58468664,2873.0,2870.7,1.96397696]
[1769364854466,1.58468664,2873.0,2870.0,3.139]
[1769364854467,1.58468664,2872.3,2870.0,3.139]
[1769364854971,1.44531156,2872.9,2870.1,1.96397696]
[1769364855275,8.17473004,2872.8,2870.1,1.96397696]
[1769364855670,5.60079131,2872.2,2869.8,0.00350517]
[1769364855871,4.15862537,2872.1,2869.8,0.00350517]
[1769364856067,8.17473004,2872.1,2869.8,0.00350517]
[1769364856268,4.01610467,2871.9,2869.8,0.00350517]
[1769364856470,4.15862537,2871.8,2869.8,0.00350517]
[1769364856668,1.58468664,2871.4,2869.8,0.00350517]
[1769364856872,4.15862537,2871.3,2869.8,0.00350517]
[1769364857678,4.15862537,2871.2,2869.8,0.00350517]
[1769364857873,4.15862537,2871.1,2869.8,0.00350517]
[1769364858073,4.01610467,2871.7,2869.8,0.00350517]
[1769364858274,4.19337587,2871.6,2869.8,0.17797517]
[1769364858477,4.19337587,2871.5,2869.8,0.17797517]
[1769364858680,3.139,2871.8,2869.8,0.17797517]
[1769364858977,4.19500991,2871.7,2869.8,0.17797517]
[1769364859177,4.19500991,2871.6,2869.8,0.17797517]
[1769364859380,4.19500991,2871.5,2869.8,0.00350517]
[1769364859579,4.19500991,2871.4,2869.8,0.00350517]
[1769364859777,4.19500991,2871.4,2868.9,2.29837699]
[1769364859778,4.01610467,2871.0,2868.9,2.29837699]
[1769364860174,8.21111458,2870.9,2868.9,2.29837699]